lending/lending_fUSD_20250808
["ID","MTS","AMOUNT","RATE_DAILY","PERIOD"]
[377942198,1754621432750,-1013.15999229,0.00018816,2]
[377942199,1754621432759,-1013.15999229,0.00018828,2]
[377942200,1754621432769,-463.548,0.00018832,2]
[377942201,1754621432779,-160.07426321,0.00018835,2]
[377942202,1754621432788,-1013.15999229,0.0001884,2]
[377942203,1754621432798,-1013.15999229,0.00018852,2]
[377942204,1754621432808,-160.07426321,0.00018857,2]
[377942205,1754621432818,-1013.15999229,0.00018864,2]
[377942206,1754621432827,-300.0,0.00018869,2]
[377942207,1754621432836,-500.0,0.00018873,2]
[377942208,1754621432845,-1013.15999229,0.00018876,2]
[377942210,1754621432855,-160.07426321,0.00018878,2]
[377942212,1754621432864,-500.0,0.00018881,2]
[377942214,1754621432873,-1013.15999229,0.00018888,2]
[377942216,1754621432883,-557.0,0.0001889,2]
[377942217,1754621432893,-400.0,0.00018891,2]
[377942218,1754621432902,-400.0,0.00018891,2]
[377942220,1754621432911,-214.70506943,0.00018891,2]
[377942222,1754621432920,-783.27,0.00018891,2]
[377942223,1754621432930,-400.0,0.00018891,2]
[377942224,1754621432939,-687.87,0.00018891,2]
[377942225,1754621432948,-496.3,0.00018891,2]
[377942226,1754621432958,-400.0,0.00018891,2]
[377942227,1754621432968,-400.0,0.00018891,2]
[377942228,1754621432977,-469.46,0.00018891,2]
[377942229,1754621432987,-402.92,0.00018891,2]
[377942230,1754621432997,-400.0,0.00018891,2]
[377942231,1754621433007,-296.410755,0.00018891,2]
[377942232,1754621433017,-400.0,0.00018891,2]
[377942233,1754621433026,-720.57,0.00018891,2]
[377942234,1754621433036,-400.0,0.00018891,2]
[377942235,1754621433046,-400.0,0.00018891,2]
[377942236,1754621433055,-794.86,0.00018891,2]
[377942237,1754621433065,-259.08718215,0.00018891,2]
[377942238,1754621433087,-422.565439,0.00018891,2]
[377942239,1754621433102,-794.06,0.00018891,2]
[377942240,1754621433112,-620.44,0.00018891,2]
[377942241,1754621433275,-400.0,0.00018891,2]
[377942242,1754621433320,-400.0,0.00018891,2]
[377942243,1754621433330,-504.368841,0.00018891,2]
[377942244,1754621433340,-423.76,0.00018891,2]
[377942245,1754621433350,-656.14,0.00018891,2]
[377942246,1754621433359,-6316.48,0.00018891,2]
[377942247,1754621433369,-400.0,0.00018891,2]
[377942248,1754621433379,-423.52,0.00018891,2]
[377942249,1754621433388,-969.68,0.00018891,2]
[377942250,1754621433399,-400.0,0.00018891,2]
[377942251,1754621433409,-668.35,0.00018891,2]
[377942252,1754621433424,-400.0,0.00018891,2]
[377942253,1754621433435,-400.0,0.00018891,2]
[377942254,1754621433445,-596.39,0.00018891,2]
[377942255,1754621433456,-933.47,0.00018891,2]
[377942256,1754621433466,-827.34,0.00018891,2]
[377942257,1754621433476,-532.65,0.00018891,2]
[377942258,1754621433486,-703.13,0.00018891,2]
[377942259,1754621433498,-407.71,0.00018891,2]
[377942260,1754621433509,-400.0,0.00018891,2]
[377942261,1754621433519,-400.0,0.00018891,2]
[377942262,1754621433528,-836.79,0.00018891,2]
[377942263,1754621433537,-400.0,0.00018891,2]
[377942264,1754621433547,-933.54,0.00018891,2]
[377942265,1754621433556,-413.0,0.00018891,2]
[377942266,1754621433566,-1060.01,0.00018891,2]
[377942267,1754621433576,-557.18,0.00018891,2]
[377942268,1754621433585,-837.23,0.00018891,2]
[377942269,1754621433595,-400.0,0.00018891,2]
[377942270,1754621433604,-544.3,0.00018891,2]
[377942271,1754621433613,-400.0,0.00018891,2]
[377942272,1754621433623,-1020.76,0.00018891,2]
[377942273,1754621433633,-452.08,0.00018891,2]
[377942274,1754621433643,-2850.65,0.00018891,2]
[377942275,1754621433652,-246.791619,0.00018891,2]
[377942276,1754621433661,-844.19,0.00018891,2]
[377942277,1754621433672,-400.0,0.00018891,2]
[377942278,1754621433681,-1337.42,0.00018891,2]
[377942279,1754621433690,-402.42727892,0.00018891,2]
[377942280,1754621433699,-483.27824652,0.00018891,2]
[377942281,1754621433709,-777.56,0.00018891,2]
[377942282,1754621433718,-401.62929473,0.00018891,2]
[377942283,1754621433727,-403.77438435,0.00018891,2]
[377942284,1754621433737,-965.79,0.00018891,2]
[377942285,1754621433747,-400.0,0.00018891,2]
[377942286,1754621433756,-400.0,0.00018891,2]
[377942287,1754621433766,-400.0,0.00018891,2]
[377942288,1754621433775,-445.37,0.00018891,2]
[377942289,1754621433785,-880.29,0.00018891,2]
[377942290,1754621433794,-400.0,0.00018891,2]
[377942291,1754621433804,-400.0,0.00018891,2]
[377942292,1754621433813,-1281.84,0.00018891,2]
[377942293,1754621433823,-400.0,0.00018891,2]
[377942294,1754621433832,-816.92,0.00018891,2]
[377942295,1754621433842,-498.33,0.00018891,2]
[377942296,1754621433851,-747.33,0.00018891,2]
[377942297,1754621433861,-400.0,0.00018891,2]
[377942298,1754621433870,-691.67,0.00018891,2]
[377942299,1754621433880,-400.0,0.00018891,2]
[377942300,1754621433890,-400.0,0.00018891,2]
[377942301,1754621433900,-887.99,0.00018891,2]
[377942302,1754621433911,-400.0,0.00018891,2]
[377942303,1754621433920,-400.0,0.00018891,2]
[377942304,1754621433929,-400.0,0.00018891,2]
[377942305,1754621433939,-719.03,0.00018891,2]
[377942306,1754621433949,-899.6,0.00018891,2]
[377942307,1754621433958,-400.0,0.00018891,2]
[377942308,1754621433968,-400.0,0.00018891,2]
[377942309,1754621433982,-400.0,0.00018891,2]
[377942310,1754621433992,-486.57164919,0.00018891,2]
[377942311,1754621434001,-400.0,0.00018891,2]
[377942312,1754621434011,-400.0,0.00018891,2]
[377942313,1754621434022,-637.68,0.00018891,2]
[377942314,1754621434031,-400.0,0.00018891,2]
[377942315,1754621434041,-400.0,0.00018891,2]
[377942316,1754621434050,-587.61,0.00018891,2]
[377942317,1754621434059,-1078.55,0.00018891,2]
[377942318,1754621434069,-400.0,0.00018891,2]
[377942319,1754621434078,-400.0,0.00018891,2]
[377942320,1754621434087,-400.0,0.00018891,2]
[377942321,1754621434096,-1208.94,0.00018891,2]
[377942322,1754621434107,-865.51,0.00018891,2]
[377942323,1754621434116,-400.0,0.00018891,2]
[377942324,1754621434126,-401.48845803,0.00018891,2]
[377942325,1754621434136,-639.16,0.00018891,2]
[377942326,1754621434146,-150.0,0.00018891,2]
[377942327,1754621434155,-400.0,0.00018891,2]
[377942328,1754621434165,-151.62393376,0.00018891,2]
[377942329,1754621434175,-593.29,0.00018891,2]
[377942330,1754621434184,-150.0,0.00018891,2]
[377942331,1754621434193,-870.66,0.00018891,2]
[377942332,1754621434203,-150.0,0.00018891,2]
[377942333,1754621434212,-402.46010541,0.00018891,2]
[377942334,1754621434221,-676.5,0.00018891,2]
[377942335,1754621434230,-280.0,0.00018891,2]
[377942336,1754621434240,-150.44575726,0.00018891,2]
[377942337,1754621434250,-162.24030578,0.00018891,2]
[377942338,1754621434259,-150.0,0.00018891,2]
[377942339,1754621434269,-400.0,0.00018891,2]
[377942340,1754621434279,-407.08870249,0.00018891,2]
[377942341,1754621434289,-704.69,0.00018891,2]
[377942342,1754621434299,-400.0,0.00018891,2]
[377942343,1754621434308,-886.3,0.00018891,2]
[377942344,1754621434317,-400.0,0.00018891,2]
[377942345,1754621434327,-402.12413624,0.00018891,2]
[377942346,1754621434336,-472.63972716,0.00018891,2]
[377942347,1754621434346,-1374.31,0.00018891,2]
[377942348,1754621434355,-400.0,0.00018891,2]
[377942349,1754621434364,-242.53577029,0.00018891,2]
[377942350,1754621438198,-157.46422971,0.00018891,2]
[377942351,1754621438208,-912.68576779,0.00018891,2]
[377942352,1754621438288,-837.63423221,0.00018891,2]
[377942353,1754621438298,-400.0,0.00018891,2]
[377942354,1754621438308,-506.52,0.00018891,2]
[377942355,1754621438317,-400.0,0.00018891,2]
[377942356,1754621438326,-1277.15,0.00018891,2]
[377942357,1754621438336,-789.11,0.00018891,2]
[377942358,1754621438346,-485.54,0.00018891,2]
[377942359,1754621438355,-471.3,0.00018891,2]
[377942360,1754621438364,-759.15,0.00018891,2]
[377942361,1754621438374,-400.0,0.00018891,2]
[377942362,1754621438384,-791.85,0.00018891,2]
[377942363,1754621438393,-400.0,0.00018891,2]
[377942364,1754621438404,-400.0,0.00018891,2]
[377942365,1754621438415,-498.17,0.00018891,2]
[377942366,1754621438425,-1064.59,0.00018891,2]
[377942367,1754621438434,-500.0,0.00018891,2]
[377942368,1754621438443,-2316.44,0.00018891,2]
[377942369,1754621438452,-916.29,0.00018891,2]
[377942370,1754621438462,-400.0,0.00018891,2]
[377942371,1754621438471,-585.65,0.00018891,2]
[377942372,1754621438481,-698.14,0.00018891,2]
[377942373,1754621438491,-500.0,0.00018891,2]
[377942374,1754621438500,-400.0,0.00018891,2]
[377942375,1754621438511,-400.0,0.00018891,2]
[377942377,1754621438520,-819.72,0.00018891,2]
[377942378,1754621438529,-458.4,0.00018891,2]
[377942380,1754621438538,-400.0,0.00018891,2]
[377942381,1754621438547,-150.0,0.00018891,2]
[377942382,1754621438556,-646.03,0.00018891,2]
[377942383,1754621438566,-150.0,0.00018891,2]
[377942384,1754621438575,-453.93,0.00018891,2]
[377942385,1754621438585,-2021.0,0.00018891,2]
[377942386,1754621438594,-652.73,0.00018891,2]
[377942387,1754621438603,-400.0,0.00018891,2]
[377942388,1754621438613,-400.0,0.00018891,2]
[377942389,1754621438622,-786.34,0.00018891,2]
[377942390,1754621438631,-405.06,0.00018891,2]
[377942391,1754621438639,-1762.15,0.00018891,2]
[377942392,1754621438648,-655.62,0.00018891,2]
[377942393,1754621438657,-400.0,0.00018891,2]
[377942394,1754621438666,-400.0,0.00018891,2]
[377942395,1754621438675,-400.0,0.00018891,2]
[377942396,1754621438684,-400.0,0.00018891,2]
[377942397,1754621438693,-774.44,0.00018891,2]
[377942398,1754621438702,-400.0,0.00018891,2]
[377942399,1754621438711,-741.95,0.00018891,2]
[377942400,1754621438721,-773.78,0.00018891,2]
[377942401,1754621438730,-800.16,0.00018891,2]
[377942402,1754621438739,-1948.87,0.00018891,2]
[377942403,1754621438748,-404.00496123,0.00018891,2]
[377942404,1754621438758,-731.31,0.00018891,2]
[377942405,1754621438767,-400.0,0.00018891,2]
[377942406,1754621438776,-400.0,0.00018891,2]
[377942407,1754621438785,-902.63,0.00018891,2]
[377942408,1754621438795,-400.0,0.00018891,2]
[377942409,1754621438804,-713.99,0.00018891,2]
[377942410,1754621438813,-773.73,0.00018891,2]
[377942411,1754621438822,-863.69,0.00018891,2]
[377942412,1754621438831,-1164.48,0.00018891,2]
[377942413,1754621438840,-400.0,0.00018891,2]
[377942414,1754621438850,-825.24,0.00018891,2]
[377942415,1754621438859,-613.07,0.00018891,2]
[377942416,1754621438868,-400.0,0.00018891,2]
[377942417,1754621438878,-1040.38,0.00018891,2]
[377942418,1754621438887,-400.0,0.00018891,2]
[377942419,1754621438896,-704.35,0.00018891,2]
[377942420,1754621438906,-400.0,0.00018891,2]
[377942421,1754621438914,-550.13,0.00018891,2]
[377942422,1754621438924,-223.37186074,0.00018891,2]
[377942423,1754621438933,-483.01,0.00018891,2]
[377942424,1754621438941,-676.53,0.00018891,2]
[377942425,1754621438950,-400.0,0.00018891,2]
[377942426,1754621438959,-964.37,0.00018891,2]
[377942427,1754621438968,-400.0,0.00018891,2]
[377942428,1754621438977,-400.0,0.00018891,2]
[377942429,1754621438986,-402.25133762,0.00018891,2]
[377942430,1754621438995,-419.38,0.00018891,2]
[377942431,1754621439004,-400.0,0.00018891,2]
[377942432,1754621439013,-400.0,0.00018891,2]
[377942433,1754621439022,-1442.5,0.00018891,2]
[377942434,1754621439032,-973.0,0.00018891,2]
[377942435,1754621439040,-898.5,0.00018891,2]
[377942436,1754621439050,-590.26,0.00018891,2]
[377942437,1754621439059,-998.12,0.00018891,2]
[377942438,1754621439068,-400.0,0.00018891,2]
[377942439,1754621439077,-400.0,0.00018891,2]
[377942440,1754621439086,-601.26,0.00018891,2]
[377942441,1754621439096,-779.32,0.00018891,2]
[377942442,1754621439105,-929.85,0.00018891,2]
[377942443,1754621439115,-1078.68,0.00018891,2]
[377942444,1754621439124,-400.0,0.00018891,2]
[377942445,1754621439133,-400.0,0.00018891,2]
[377942446,1754621439143,-400.0,0.00018891,2]
[377942447,1754621439153,-400.0,0.00018891,2]
[377942448,1754621439163,-400.0,0.00018891,2]
[377942449,1754621439172,-400.0,0.00018891,2]
[377942450,1754621439182,-1527.11,0.00018891,2]
[377942451,1754621439191,-692.09,0.00018891,2]
[377942452,1754621439200,-1027.28,0.00018891,2]
[377942453,1754621439210,-400.0,0.00018891,2]
[377942454,1754621439219,-400.0,0.00018891,2]
[377942455,1754621439229,-1394.57,0.00018891,2]
[377942456,1754621439238,-1560.96,0.00018891,2]
[377942457,1754621439247,-726.9,0.00018891,2]
[377942458,1754621439256,-626.35,0.00018891,2]
[377942459,1754621439265,-400.0,0.00018891,2]
[377942460,1754621439275,-400.0,0.00018891,2]
[377942461,1754621439284,-532.62,0.00018891,2]
[377942462,1754621439294,-861.7864626,0.00018891,2]
[377942463,1754621439326,-657.3135374,0.00018891,2]
[377942464,1754621439335,-811.73,0.00018891,2]
[377942465,1754621439344,-400.0,0.00018891,2]
[377942466,1754621439354,-760.28,0.00018891,2]
[377942467,1754621439363,-383.336431,0.00018891,2]
[377942469,1754621440285,-16.663569,0.00018891,2]
[377942470,1754621440294,-400.0,0.00018891,2]
[377942471,1754621440303,-1023.79,0.00018891,2]
[377942472,1754621440312,-400.0,0.00018891,2]
[377942473,1754621440321,-1242.26,0.00018891,2]
[377942474,1754621440330,-737.6,0.00018891,2]
[377942475,1754621440339,-400.0,0.00018891,2]
[377942476,1754621440349,-1268.6,0.00018891,2]
[377942477,1754621440359,-400.0,0.00018891,2]
[377942478,1754621440369,-400.0,0.00018891,2]
[377942479,1754621440379,-511.97,0.00018891,2]
[377942480,1754621440388,-1732.47,0.00018891,2]
[377942481,1754621440398,-400.0,0.00018891,2]
[377942482,1754621440410,-400.88,0.00018891,2]
[377942483,1754621440421,-400.0,0.00018891,2]
[377942484,1754621440431,-400.0,0.00018891,2]
[377942485,1754621440441,-462.61,0.00018891,2]
[377942486,1754621440450,-400.0,0.00018891,2]
[377942487,1754621440460,-1291.51,0.00018891,2]
[377942488,1754621440470,-2032.17,0.00018891,2]
[377942489,1754621440480,-419.65,0.00018891,2]
[377942490,1754621440491,-400.0,0.00018891,2]
[377942491,1754621440504,-519.59,0.00018891,2]
[377942492,1754621440514,-400.0,0.00018891,2]
[377942493,1754621440524,-400.0,0.00018891,2]
[377942494,1754621440534,-488.27,0.00018891,2]
[377942495,1754621440543,-720.96,0.00018891,2]
[377942496,1754621440553,-400.0,0.00018891,2]
[377942497,1754621440562,-400.0,0.00018891,2]
[377942498,1754621440573,-1377.06,0.00018891,2]
[377942499,1754621440583,-442.62,0.00018891,2]
[377942500,1754621440593,-400.0,0.00018891,2]
[377942501,1754621440603,-400.0,0.00018891,2]
[377942502,1754621440612,-768.27,0.00018891,2]
[377942503,1754621440807,-400.0,0.00018891,2]
[377942504,1754621440817,-400.0,0.00018891,2]
[377942505,1754621440826,-400.0,0.00018891,2]
[377942506,1754621440836,-2392.44,0.00018891,2]
[377942507,1754621440845,-400.0,0.00018891,2]
[377942508,1754621440854,-623.43,0.00018891,2]
[377942509,1754621440864,-400.0,0.00018891,2]
[377942510,1754621440873,-1292.56,0.00018891,2]
[377942511,1754621440882,-532.22,0.00018891,2]
[377942512,1754621440891,-788.76,0.00018891,2]
[377942513,1754621440902,-503.71,0.00018891,2]
[377942514,1754621440911,-400.3,0.00018891,2]
[377942515,1754621440921,-1549.46,0.00018891,2]
[377942516,1754621440931,-400.0,0.00018891,2]
[377942517,1754621440940,-400.0,0.00018891,2]
[377942518,1754621440949,-155.5454894,0.00018891,2]
[377942519,1754621440959,-150.0,0.00018891,2]
[377942520,1754621440969,-400.0,0.00018891,2]
[377942521,1754621440978,-400.0,0.00018891,2]
[377942522,1754621440988,-1156.21,0.00018891,2]
[377942523,1754621440997,-771.41,0.00018891,2]
[377942524,1754621441007,-1404.02,0.00018891,2]
[377942525,1754621441016,-400.0,0.00018891,2]
[377942526,1754621441026,-516.46,0.00018891,2]
[377942527,1754621441036,-981.71,0.00018891,2]
[377942528,1754621441045,-400.0,0.00018891,2]
[377942529,1754621441054,-400.0,0.00018891,2]
[377942530,1754621441064,-400.0,0.00018891,2]
[377942531,1754621441074,-530.28,0.00018891,2]
[377942532,1754621441083,-1277.26,0.00018891,2]
[377942533,1754621441092,-422.97,0.00018891,2]
[377942534,1754621441101,-464.27,0.00018891,2]
[377942535,1754621441110,-719.1,0.00018891,2]
[377942536,1754621441120,-799.32,0.00018891,2]
[377942537,1754621441129,-1059.89,0.00018891,2]
[377942538,1754621441138,-680.81,0.00018891,2]
[377942539,1754621441147,-507.19,0.00018891,2]
[377942540,1754621441161,-400.0,0.00018891,2]
[377942541,1754621441170,-901.4,0.00018891,2]
[377942542,1754621441179,-400.0,0.00018891,2]
[377942543,1754621441188,-400.0,0.00018891,2]
[377942544,1754621441197,-1267.58,0.00018891,2]
[377942545,1754621441206,-644.36,0.00018891,2]
[377942546,1754621441215,-5800.0,0.00018892,2]
[377942547,1754621441224,-461.15848571,0.00018892,2]
[377942548,1754621441233,-400.0,0.00018892,2]
[377942549,1754621441242,-797.87,0.00018892,2]
[377942550,1754621441251,-400.0,0.00018892,2]
[377942551,1754621441260,-542.53,0.00018892,2]
[377942552,1754621441269,-400.0,0.00018892,2]
[377942553,1754621441279,-400.0,0.00018892,2]
[377942554,1754621441288,-400.0,0.00018892,2]
[377942555,1754621441297,-479.49,0.00018892,2]
[377942556,1754621441306,-1000.0,0.00018892,2]
[377942557,1754621441316,-507.82,0.00018892,2]
[377942558,1754621441327,-400.0,0.00018892,2]
[377942559,1754621441336,-629.2,0.00018892,2]
[377942560,1754621441346,-421.17505665,0.00018892,2]
[377942561,1754621441357,-433.5,0.00018892,2]
[377942562,1754621441365,-400.0,0.00018892,2]
[377942563,1754621441374,-737.27,0.00018892,2]
[377942564,1754621441384,-400.0,0.00018892,2]
[377942565,1754621441394,-400.0,0.00018892,2]
[377942566,1754621441404,-550.96,0.00018892,2]
[377942567,1754621441414,-400.0,0.00018892,2]
[377942568,1754621441428,-330.22969055,0.00018892,2]
[377942569,1754621441436,-400.0,0.00018892,2]
[377942570,1754621441446,-400.0,0.00018892,2]
[377942571,1754621441455,-666.72,0.00018892,2]
[377942572,1754621441465,-400.0,0.00018892,2]
[377942573,1754621441475,-400.0,0.00018892,2]
[377942574,1754621441484,-400.0,0.00018892,2]
[377942575,1754621441493,-400.0,0.00018892,2]
[377942576,1754621441505,-400.0,0.00018892,2]
[377942577,1754621441515,-471.71,0.00018892,2]
[377942578,1754621441524,-495.04384578,0.00018892,2]
[377942579,1754621441534,-400.0,0.00018892,2]
[377942580,1754621441543,-400.0,0.00018892,2]
[377942581,1754621441552,-400.0,0.00018892,2]
[377942582,1754621441561,-536.09,0.00018892,2]
[377942583,1754621441570,-400.0,0.00018892,2]
[377942584,1754621441580,-591.4,0.00018892,2]
[377942585,1754621441589,-400.0,0.00018892,2]
[377942586,1754621441599,-400.0,0.00018892,2]
[377942587,1754621441608,-400.0,0.00018892,2]
[377942588,1754621441618,-670.87,0.00018892,2]
[377942589,1754621441627,-400.0,0.00018892,2]
[377942590,1754621441636,-400.0,0.00018892,2]
[377942591,1754621441645,-400.0,0.00018892,2]
[377942592,1754621441655,-400.0,0.00018892,2]
[377942593,1754621441664,-408.59,0.00018892,2]
[377942594,1754621441673,-375.91915822,0.00018892,2]
[377942595,1754621441683,-400.0,0.00018892,2]
[377942596,1754621441692,-400.0,0.00018892,2]
[377942597,1754621441701,-428.06,0.00018892,2]
[377942598,1754621441711,-400.0,0.00018892,2]
[377942599,1754621441721,-496.6,0.00018892,2]
[377942600,1754621441730,-400.0,0.00018892,2]
[377942601,1754621441740,-482.49,0.00018892,2]
[377942602,1754621441749,-400.0,0.00018892,2]
[377942603,1754621441759,-404.67,0.00018892,2]
[377942604,1754621441768,-400.0,0.00018892,2]
[377942605,1754621441777,-400.0,0.00018892,2]
[377942606,1754621441787,-400.0,0.00018892,2]
[377942607,1754621441796,-400.0,0.00018892,2]
[377942608,1754621441806,-815.62,0.00018892,2]
[377942609,1754621441815,-587.3,0.00018892,2]
[377942610,1754621441825,-400.0,0.00018892,2]
[377942611,1754621441834,-400.0,0.00018892,2]
[377942612,1754621441844,-400.0,0.00018892,2]
[377942613,1754621441853,-400.0,0.00018892,2]
[377942614,1754621441862,-403.47500644,0.00018892,2]
[377942615,1754621441872,-721.67,0.00018892,2]
[377942616,1754621441881,-400.0,0.00018892,2]
[377942617,1754621441890,-400.0,0.00018892,2]
[377942618,1754621441899,-747.24,0.00018892,2]
[377942619,1754621441909,-400.0,0.00018892,2]
[377942620,1754621441918,-400.0,0.00018892,2]
[377942621,1754621441928,-400.0,0.00018892,2]
[377942622,1754621441938,-400.0,0.00018892,2]
[377942623,1754621441947,-418.16,0.00018892,2]
[377942624,1754621441956,-897.17,0.00018892,2]
[377942625,1754621441966,-926.47,0.00018892,2]
[377942626,1754621441975,-400.0,0.00018892,2]
[377942627,1754621441985,-400.0,0.00018892,2]
[377942628,1754621441994,-711.28,0.00018892,2]
[377942629,1754621442003,-400.0,0.00018892,2]
[377942630,1754621442013,-527.79,0.00018892,2]
[377942631,1754621442022,-423.32,0.00018892,2]
[377942632,1754621442033,-400.0,0.00018892,2]
[377942633,1754621442042,-400.0,0.00018892,2]
[377942634,1754621442051,-400.0,0.00018892,2]
[377942635,1754621442061,-500.0,0.00018892,2]
[377942636,1754621442071,-941.23,0.00018892,2]
[377942637,1754621442080,-400.0,0.00018892,2]
[377942638,1754621442090,-400.0,0.00018892,2]
[377942639,1754621442099,-400.0,0.00018892,2]
[377942640,1754621442109,-400.0,0.00018892,2]
[377942641,1754621442118,-475.52,0.00018892,2]
[377942642,1754621442127,-400.0,0.00018892,2]
[377942643,1754621442137,-400.0,0.00018892,2]
[377942644,1754621442147,-167.524059,0.00018892,2]
[377942645,1754621442158,-491.63,0.00018892,2]
[377942646,1754621442167,-679.02,0.00018892,2]
[377942647,1754621442176,-383.96277272,0.00018892,2]
[377942648,1754621442186,-400.0,0.00018892,2]
[377942649,1754621442195,-761.81,0.00018892,2]
[377942650,1754621442204,-456.21,0.00018892,2]
[377942651,1754621442213,-73.48406202,0.00018892,2]
[377942652,1754621442285,-698.52593798,0.00018892,2]
[377942653,1754621442295,-400.0,0.00018892,2]
[377942654,1754621442304,-539.37,0.00018892,2]
[377942655,1754621442314,-353.88983118,0.00018892,2]
[377942656,1754621442326,-46.11016882,0.00018892,2]
[377942657,1754621442336,-400.0,0.00018892,2]
[377942658,1754621442345,-398.19384185,0.00018892,2]
[377942659,1754621442357,-696.42615815,0.00018892,2]
[377942660,1754621442367,-657.26,0.00018892,2]
[377942661,1754621442377,-1461.47,0.00018892,2]
[377942662,1754621442386,-400.0,0.00018892,2]
[377942663,1754621442396,-400.0,0.00018892,2]
[377942664,1754621442406,-400.0,0.00018892,2]
[377942665,1754621442417,-1039.84,0.00018892,2]
[377942666,1754621442428,-554.49,0.00018892,2]
[377942667,1754621442437,-500.0,0.00018892,2]
[377942668,1754621442447,-400.0,0.00018892,2]
[377942669,1754621442457,-678.62,0.00018892,2]
[377942670,1754621442467,-953.79,0.00018892,2]
[377942671,1754621442476,-1148.12,0.00018892,2]
[377942672,1754621442485,-722.47,0.00018892,2]
[377942673,1754621442497,-423.59,0.00018892,2]
[377942674,1754621442508,-400.0,0.00018892,2]
[377942675,1754621442519,-414.76,0.00018892,2]
[377942676,1754621442529,-400.0,0.00018892,2]
[377942677,1754621442538,-484.39,0.00018892,2]
[377942678,1754621442549,-400.0,0.00018892,2]
[377942679,1754621442558,-351.44573635,0.00018892,2]
[377942680,1754621442570,-202.08426365,0.00018892,2]
[377942681,1754621442580,-50.62126092,0.00018892,2]
[377942682,1754621442591,-602.78873908,0.00018892,2]
[377942683,1754621442600,-400.0,0.00018892,2]
[377942684,1754621442610,-343.53741172,0.00018892,2]
[377942695,1754621444865,-827.3,0.00018891,2]
[377942696,1754621444875,-122.34258828,0.00018892,2]
[377942697,1754621444884,-238.04449355,0.00018892,2]
[377942698,1754621445442,-161.95550645,0.00018892,2]
[377942699,1754621445454,-400.0,0.00018892,2]
[377942700,1754621445465,-1822.71,0.00018892,2]
[377942701,1754621445474,-400.0,0.00018892,2]
[377942702,1754621445691,-1491.45,0.00018892,2]
[377942703,1754621445702,-969.21,0.00018892,2]
[377942704,1754621445711,-400.0,0.00018892,2]
[377942705,1754621445721,-400.0,0.00018892,2]
[377942706,1754621445731,-755.42,0.00018892,2]
[377942707,1754621445740,-400.0,0.00018892,2]
[377942708,1754621445956,-624.51,0.00018892,2]
[377942709,1754621445966,-320.28054951,0.00018892,2]
[377942710,1754621445978,-611.24945049,0.00018892,2]
[377942711,1754621445988,-400.0,0.00018892,2]
[377942712,1754621445997,-215.55496362,0.00018892,2]
[377942713,1754621446031,-991.56482412,0.00018892,2]
[377942716,1754621456098,274.93,0.00017862,2]
[377942717,1754621550098,829.53,0.00017958,2]
[377942718,1754621561996,92957.06,0.00017948,2]